bitfinex-derivatives/quotes_SOLF0:USTF0_20250720
["timestamp","ask_amount","ask_price","bid_price","bid_amount"]
[1752991162587,4.48997269,177.86,177.85,106.95]
[1752991162987,4.48997269,177.86,177.85,103.9]
[1752991164191,3.29,177.85,177.84,3.05]
[1752991166198,3.29,177.85,177.84,8.67]
[1752991178203,4.48997269,177.85,177.84,8.67]
[1752991178902,3.27,177.93,177.87,3.11]
[1752991179103,4.46997269,177.88,177.87,3.11]
[1752991179804,4.46997269,177.88,177.87,8.7289]
[1752991181906,4.46997269,177.88,177.87,8.71833539]
[1752991182904,4.46997269,177.88,177.87,3.09943539]
[1752991183708,1.19997269,177.88,177.86,5.6193]
[1752991183910,3.27,177.87,177.86,8.7293]
[1752991184111,4.46997269,177.87,177.86,8.7293]
[1752991184306,4.46997269,177.87,177.86,3.11]
[1752991184510,4.46997269,177.87,177.85,103.6]
[1752991184809,4.46997269,177.86,177.85,103.6]
[1752991185809,4.46997269,177.86,177.85,106.71]
[1752991186412,4.46997269,177.86,177.85,112.3297]
[1752991205520,4.46997269,177.86,177.85,109.2197]
[1752991208426,4.46997269,177.86,177.85,103.6]
[1752991209225,2.99,177.84,177.81,3.05]
[1752991209530,2.99,177.84,177.83,3.05]
[1752991210619,4.18997269,177.84,177.83,3.05]
[1752991210824,4.18997269,177.84,177.83,8.6703]
[1752991211531,4.18997269,177.84,177.83,5.6203]
[1752991211733,2.99,177.83,177.82,103.2]
[1752991212033,2.99,177.83,177.81,3.05]
[1752991212232,4.18997269,177.82,177.81,8.6709]
[1752991212627,5.6197,177.85,177.82,5.6205]
[1752991212828,4.18997269,177.83,177.82,8.6705]
[1752991213127,2.99,177.82,177.8,103.2]
[1752991213440,4.18997269,177.81,177.8,103.2]
[1752991214328,2.99,177.8,177.79,106.25]
[1752991214735,2.99,177.8,177.79,103.2]
[1752991214932,2.99,177.8,177.74,3.05]
[1752991215129,4.18997269,177.76,177.75,111.8928]
[1752991215328,1.19997269,177.76,177.75,111.8928]
[1752991217834,9.43782262,177.89,177.78,8.6718]
[1752991217835,2.99,177.79,177.78,8.6718]
[1752991218036,2.99,177.79,177.78,111.8918]
[1752991218838,4.18997269,177.79,177.78,111.8918]
[1752991220837,4.18997269,177.79,177.78,106.27]
[1752991225137,4.18997269,177.79,177.78,3.05]
[1752991225543,4.18997269,177.79,177.77,111.8921]
[1752991225738,2.99,177.78,177.77,111.8921]
[1752991225939,2.99,177.78,177.7,3.05]
[1752991226137,2.99,177.73,177.71,103.22]
[1752991226440,2.99,177.73,177.72,3.05]
[1752991226643,1.19997269,177.74,177.73,5.6235]
[1752991226838,4.18997269,177.74,177.73,111.8935]
[1752991228545,4.18997269,177.74,177.73,108.8435]
[1752991228747,4.18997269,177.74,177.73,112.0535]
[1752991229644,4.18997269,177.74,177.73,106.43]
[1752991231138,4.18997269,177.74,177.73,103.22]
[1752991231344,4.18997269,177.74,177.73,106.43]
[1752991232242,4.18997269,177.74,177.73,112.0535]
[1752991234545,1.19997269,177.76,177.74,3.21]
[1752991234744,1.19997269,177.77,177.76,3.21]
[1752991234949,1.19997269,177.77,177.76,106.45]
[1752991235448,1.19997269,177.77,177.76,112.0725]
[1752991236750,4.27997269,177.77,177.76,112.0725]
[1752991238243,4.27997269,177.77,177.76,106.45]
[1752991238444,4.27997269,177.77,177.76,103.24]
[1752991238640,3.08,177.76,177.75,103.24]
[1752991238850,3.08,177.76,177.74,103.24]
[1752991239052,4.27997269,177.75,177.74,103.24]
[1752991239851,9.90277269,177.75,177.74,103.24]
[1752991240251,4.27997269,177.75,177.74,103.24]
[1752991240952,4.96039956,177.75,177.74,106.45]
[1752991243047,10.58319956,177.75,177.74,106.45]
[1752991243245,10.58319956,177.75,177.74,103.24]
[1752991243643,3.08,177.74,177.72,103.24]
[1752991243854,4.96039956,177.73,177.72,103.24]
[1752991244850,10.58389956,177.73,177.72,103.24]
[1752991245251,3.08,177.72,177.7,103.24]
[1752991245454,1.88039956,177.71,177.7,103.24]
[1752991245654,4.96039956,177.71,177.7,106.45]
[1752991246352,10.58449956,177.71,177.7,103.24]
[1752991247752,10.58449956,177.71,177.68,5.6249]
[1752991247753,5.6244,177.7,177.67,5.6253]
[1752991247952,1.88039956,177.69,177.68,103.24]
[1752991248253,4.96039956,177.69,177.68,106.45]
[1752991249858,4.96039956,177.69,177.68,112.075]
[1752991251351,1.88039956,177.69,177.68,112.075]
[1752991251653,4.96039956,177.69,177.68,112.075]
[1752991252352,4.96039956,177.69,177.68,106.45]
[1752991258956,4.96039956,177.69,177.68,103.24]
[1752991259756,4.96039956,177.69,177.68,106.5]
[1752991260258,1.88039956,177.69,177.68,106.5]
[1752991260460,5.12039956,177.69,177.68,106.5]
[1752991262961,4.44407946,177.69,177.68,106.5]
[1752991264765,4.44407946,177.69,177.68,112.125]
[1752991265762,4.44407946,177.69,177.68,106.5]
[1752991266858,4.44407946,177.69,177.68,112.125]
[1752991267565,4.44407946,177.69,177.68,106.5]
[1752991268459,3.24,177.69,177.68,106.5]
[1752991268760,4.44407946,177.69,177.68,106.5]
[1752991270262,4.44407946,177.69,177.68,112.125]
[1752991271365,3.24,177.74,177.69,3.26]
[1752991271664,4.44407946,177.71,177.7,106.52]
[1752991275467,3.24,177.7,177.69,3.26]
[1752991275663,1.20407946,177.7,177.69,106.52]
[1752991275969,4.44407946,177.7,177.69,103.26]
[1752991276770,10.06857946,177.7,177.69,103.26]
[1752991277771,3.24,177.68,177.67,3.26]
[1752991278073,4.44407946,177.68,177.67,103.26]
[1752991278771,4.44407946,177.68,177.67,106.52]
[1752991283679,4.44407946,177.68,177.67,112.1454]
[1752991285779,4.44407946,177.68,177.67,106.52]
[1752991286779,10.06907946,177.68,177.67,106.52]
[1752991286980,1.20407946,177.68,177.66,103.24]
[1752991287278,3.24,177.67,177.65,106.5]
[1752991287476,3.24,177.65,177.63,3.26]
[1752991287680,3.24,177.65,177.64,103.24]
[1752991287877,3.24,177.65,177.63,106.5]
[1752991288380,8.6663,177.64,177.63,106.5]
[1752991288782,9.87037946,177.64,177.63,106.5]
[1752991289079,4.24407946,177.64,177.63,103.24]
[1752991289775,4.24407946,177.64,177.63,106.48]
[1752991290177,4.24407946,177.64,177.63,112.1066]
[1752991291477,4.24407946,177.64,177.63,106.48]
[1752991291874,9.87037946,177.64,177.63,106.48]
[1752991292073,9.87037946,177.64,177.63,103.24]
[1752991293282,6.83037946,177.64,177.62,3.24]
[1752991293475,5.6267,177.63,177.61,103.26]
[1752991293681,4.24407946,177.62,177.61,103.26]
[1752991293980,4.24407946,177.62,177.61,106.5]
[1752991294185,4.24407946,177.62,177.61,112.1273]
[1752991295579,4.24407946,177.62,177.61,106.5]
[1752991297688,4.24407946,177.62,177.61,103.26]
[1752991297689,9.87097946,177.62,177.61,103.26]
[1752991299594,9.87097946,177.62,177.6,3.24]
[1752991299800,4.24407946,177.61,177.6,8.8676]
[1752991301490,4.24407946,177.61,177.6,3.24]
[1752991308800,4.24407946,177.61,177.6,8.8676]
[1752991309106,1.20407946,177.61,177.6,8.8676]
[1752991310707,3.04,177.62,177.61,3.24]
[1752991311004,4.24407946,177.62,177.61,106.5]
[1752991313407,1.20407946,177.63,177.62,3.24]
[1752991314106,1.20407946,177.63,177.62,8.8669]
[1752991316510,4.24407946,177.63,177.62,8.8669]
[1752991317707,4.24407946,177.63,177.62,3.24]
[1752991321111,9.87067946,177.63,177.62,3.24]
[1752991321806,3.17,177.61,177.58,3.26]
[1752991322020,4.37407946,177.59,177.58,3.26]
[1752991322209,4.37407946,177.59,177.58,106.48]
[1752991333521,4.37407946,177.59,177.58,112.1082]
[1752991334415,4.37407946,177.59,177.58,8.8882]
[1752991334620,4.37407946,177.59,177.58,108.8482]
[1752991335120,4.37407946,177.59,177.58,112.1082]
[1752991335320,4.37407946,177.59,177.58,108.8482]
[1752991336219,4.37407946,177.59,177.58,103.22]
[1752991337017,4.37407946,177.59,177.58,108.8482]
[1752991337324,4.37407946,177.59,177.58,103.22]
[1752991340619,3.17,177.58,177.57,103.2]
[1752991340820,1.20407946,177.58,177.56,103.2]
[1752991341020,4.37407946,177.57,177.56,103.2]
[1752991341621,4.37407946,177.57,177.56,106.46]
[1752991341822,4.37407946,177.57,177.56,112.0888]
[1752991355335,4.37407946,177.57,177.56,106.46]
[1752991356239,4.37407946,177.57,177.56,103.2]
[1752991357435,10.00257946,177.57,177.56,103.2]
[1752991357841,3.24,177.56,177.55,106.47]
[1752991361746,4.44407946,177.56,177.55,106.47]
[1752991364044,10.07287946,177.56,177.55,103.16]
[1752991364243,3.24,177.55,177.52,3.31]
[1752991364546,3.24,177.55,177.53,103.16]
[1752991364738,3.24,177.55,177.52,3.31]
[1752991364936,3.24,177.55,177.53,103.16]
[1752991365542,1.20407946,177.54,177.52,3.31]
[1752991365848,3.24,177.53,177.52,3.31]
[1752991366443,3.24,177.53,177.51,3.31]
[1752991366644,1.20407946,177.52,177.51,106.45]
[1752991366844,4.44407946,177.52,177.51,106.45]
[1752991368644,10.07417946,177.52,177.51,103.14]
[1752991369248,5.6304,177.51,177.49,106.45]
[1752991369450,4.44407946,177.5,177.49,106.45]
[1752991372557,4.44407946,177.5,177.49,112.081]
[1752991377756,1.20407946,177.5,177.49,112.081]
[1752991378960,3.15,177.54,177.5,3.05]
[1752991379260,4.35407946,177.54,177.52,8.6798]
[1752991379462,4.35407946,177.54,177.53,106.19]
[1752991380257,1.20407946,177.54,177.53,106.19]
[1752991380458,4.35407946,177.54,177.53,106.19]
[1752991381965,3.15,177.54,177.53,111.8198]
[1752991382159,4.35407946,177.54,177.53,111.8198]
[1752991382663,127.52310618,177.55,177.54,5.6295]
[1752991382863,127.52310618,177.55,177.54,8.6795]
[1752991386265,130.67310618,177.55,177.54,3.05]
[1752991388666,3.15,177.54,177.53,106.19]
[1752991389066,8.7795,177.54,177.53,106.19]
[1752991390369,1.20407946,177.54,177.49,3.05]
[1752991390557,127.52310618,177.55,177.5,106.15]
[1752991390558,3.15,177.51,177.5,106.15]
[1752991393071,8.7804,177.51,177.5,106.15]
[1752991393975,8.7804,177.51,177.5,103.1]
[1752991394676,9.98447946,177.51,177.5,106.15]
[1752991396078,4.35407946,177.51,177.5,106.15]
[1752991401979,3.15,177.51,177.5,106.15]
[1752991402186,3.15,177.54,177.51,3.05]
[1752991402481,3.15,177.54,177.53,3.05]
[1752991403986,3.15,177.54,177.53,8.6798]
[1752991404183,4.35407946,177.55,177.53,5.6298]
[1752991404383,4.35407946,177.55,177.54,106.13]
[1752991404678,3.15,177.55,177.54,106.13]
[1752991404982,3.15,177.56,177.55,3.05]
[1752991406880,3.15,177.56,177.54,106.13]
[1752991407283,3.15,177.56,177.54,103.08]
[1752991407483,3.15,177.56,177.55,3.05]
[1752991408487,8.7789,177.56,177.55,3.05]
[1752991408690,3.15,177.56,177.54,103.06]
[1752991408892,4.30407946,177.55,177.54,103.06]
[1752991409488,4.30407946,177.55,177.54,106.08]
[1752991409791,4.30407946,177.55,177.54,103.06]
[1752991409994,9.93327946,177.55,177.54,103.06]
[1752991410688,4.30407946,177.55,177.54,103.06]
[1752991411790,9.93327946,177.55,177.54,103.06]
[1752991412988,3.1,177.54,177.52,3.02]
[1752991413193,3.1,177.54,177.52,106.08]
[1752991414494,4.30407946,177.53,177.52,103.06]
[1752991414692,3.1,177.53,177.52,103.06]
[1752991416690,3.1,177.53,177.52,106.08]
[1752991419192,1.20407946,177.54,177.52,106.08]
[1752991419398,4.30407946,177.54,177.53,3.02]
[1752991425200,4.30407946,177.54,177.52,108.6901]
[1752991425401,3.1,177.53,177.52,111.7101]
[1752991425702,3.1,177.53,177.52,106.08]
[1752991428209,3.1,177.53,177.52,111.7101]
[1752991428402,3.1,177.53,177.52,103.06]
[1752991431100,8.7298,177.53,177.52,103.06]
[1752991431302,5.6298,177.53,177.5,106.06]
[1752991431506,4.30407946,177.52,177.5,106.06]
[1752991431706,3.1,177.51,177.5,106.06]
[1752991433708,8.7304,177.51,177.5,103.04]
[1752991434006,5.6304,177.51,177.48,106.06]
[1752991434206,4.30407946,177.5,177.48,106.06]
[1752991434408,3.1,177.49,177.48,106.06]
[1752991442319,4.30407946,177.49,177.48,106.06]
[1752991447625,4.30407946,177.49,177.48,106.34]
[1752991448524,3.1,177.49,177.48,111.9714]
[1752991448720,1.20407946,177.5,177.49,3.3]
[1752991448926,4.29407946,177.52,177.49,3.3]
[1752991449224,3.09,177.52,177.51,3.3]
[1752991449424,4.29407946,177.52,177.51,3.3]
[1752991451428,3.09,177.51,177.5,106.32]
[1752991455728,3.09,177.51,177.5,111.9508]
[1752991460532,4.29407946,177.52,177.5,108.6508]
[1752991460732,4.29407946,177.52,177.51,3.3]
[1752991467738,4.29407946,177.52,177.51,8.9304]
[1752991468631,3.09,177.52,177.51,8.9304]
[1752991468929,3.26,177.55,177.51,3.12]
[1752991469134,3.26,177.55,177.53,3.12]
[1752991469435,3.26,177.55,177.54,106.1]
[1752991470031,3.26,177.55,177.54,111.7295]
[1752991470230,3.26,177.56,177.55,3.12]
[1752991470636,3.26,177.56,177.55,5.6292]
[1752991470837,3.26,177.56,177.55,8.7492]
[1752991471840,4.46407946,177.57,177.56,8.7489]
[1752991472142,3.26,177.57,177.56,111.7289]
[1752991472339,4.46407946,177.58,177.56,108.6089]
[1752991472635,3.26,177.58,177.57,3.12]
[1752991476234,4.46407946,177.58,177.56,102.98]
[1752991476448,3.26,177.57,177.56,106.1]
[1752991477841,3.26,177.57,177.56,102.98]
[1752991478140,4.46407946,177.57,177.56,102.98]
[1752991479338,4.46407946,177.57,177.53,1.20407946]
[1752991479541,3.26,177.57,177.54,106.06]
[1752991479841,4.46407946,177.55,177.54,106.06]
[1752991486542,1.20407946,177.56,177.54,108.5695]
[1752991486745,4.46407946,177.56,177.55,3.12]
[1752991490348,3.26,177.56,177.54,106.06]
[1752991490548,3.26,177.55,177.54,106.06]
[1752991491047,3.26,177.55,177.54,111.6895]
[1752991493246,3.26,177.56,177.55,5.6291]
[1752991493440,3.26,177.56,177.55,8.7491]
[1752991494245,4.46407946,177.57,177.56,8.7489]
[1752991494448,3.26,177.57,177.56,111.6689]
[1752991500955,3.26,177.57,177.56,106.04]
[1752991501448,3.26,177.57,177.55,102.88]
[1752991501656,1.20407946,177.56,177.54,102.88]
[1752991501856,3.14,177.55,177.54,102.88]
[1752991502652,3.14,177.55,177.54,106.15]
[1752991503254,3.14,177.55,177.54,102.88]
[1752991503446,3.14,177.55,177.51,3.27]
[1752991503653,4.34407946,177.53,177.52,102.88]
[1752991504456,3.14,177.53,177.52,102.88]
[1752991504756,4.34407946,177.53,177.52,106.15]
[1752991505850,4.34407946,177.53,177.51,5.6303]
[1752991505851,1.20407946,177.53,177.51,5.6303]
[1752991506056,3.14,177.52,177.51,111.7803]
[1752991508860,4.34407946,177.53,177.51,108.5103]
[1752991509061,4.34407946,177.55,177.52,3.27]
[1752991509253,3.14,177.54,177.52,3.27]
[1752991509559,3.14,177.54,177.53,106.15]
[1752991510561,3.14,177.54,177.53,102.88]
[1752991510860,3.14,177.54,177.51,106.15]
[1752991511060,4.34407946,177.52,177.51,106.15]
[1752991511461,4.34407946,177.52,177.51,3.27]
[1752991511654,3.14,177.51,177.5,3.27]
[1752991514755,1.20407946,177.53,177.5,3.27]
[1752991514953,4.34407946,177.53,177.52,3.27]
[1752991515460,3.14,177.53,177.52,5.6301]
[1752991515657,3.14,177.55,177.53,3.27]
[1752991515850,3.14,177.55,177.54,3.27]
[1752991516056,3.14,177.53,177.52,102.88]
[1752991516456,3.14,177.53,177.52,106.15]
[1752991516856,3.14,177.53,177.52,102.88]
[1752991517256,3.14,177.53,177.52,106.15]
[1752991520755,3.14,177.53,177.52,102.88]
[1752991521354,3.14,177.51,177.48,3.27]
[1752991521561,1.20407946,177.51,177.49,106.15]
[1752991521764,3.14,177.5,177.49,102.88]
[1752991522157,3.14,177.49,177.47,3.27]
[1752991522460,4.34407946,177.48,177.47,102.88]
[1752991523462,4.34407946,177.48,177.46,3.27]
[1752991523663,3.14,177.47,177.46,3.27]
[1752991524762,3.14,177.47,177.46,8.902]
[1752991525266,3.14,177.56,177.49,3.27]
[1752991525560,4.34407946,177.5,177.49,3.27]
[1752991526060,3.14,177.5,177.49,3.27]
[1752991526360,4.34407946,177.5,177.49,8.9011]
[1752991527857,4.34407946,177.5,177.48,8.9014]
[1752991528052,3.14,177.49,177.48,8.9014]
[1752991530268,3.14,177.49,177.47,111.5716]
[1752991530460,4.33407946,177.48,177.47,111.5716]
[1752991530761,4.33407946,177.48,177.47,102.88]
[1752991532063,9.96547946,177.48,177.47,102.88]
[1752991532759,3.13,177.46,177.42,3.06]
[1752991532963,3.13,177.45,177.44,3.06]
[1752991533865,3.13,177.45,177.44,8.6926]
[1752991536657,3.13,177.47,177.45,3.06]
[1752991536857,5.6312,177.49,177.45,3.06]
[1752991536858,5.01622716,177.49,177.45,3.06]
[1752991537064,5.01622716,177.49,177.47,3.06]
[1752991537065,3.13,177.48,177.47,3.06]
[1752991538062,3.13,177.48,177.47,8.6917]
[1752991542165,3.13,177.48,177.47,3.06]
[1752991543367,3.13,177.48,177.42,3.06]
[1752991543671,1.88622716,177.44,177.43,3.06]
[1752991543863,5.01622716,177.44,177.43,3.06]
[1752991544564,5.01622716,177.44,177.42,105.96]
[1752991544769,3.13,177.43,177.42,105.96]
[1752991545265,5.01622716,177.46,177.43,3.06]
[1752991545459,3.13,177.45,177.43,3.06]
[1752991546472,3.13,177.45,177.44,5.6325]
[1752991546672,3.13,177.45,177.44,8.6925]
[1752991549869,3.13,177.47,177.44,105.96]
[1752991550074,5.01622716,177.46,177.45,3.06]
[1752991553072,3.13,177.45,177.44,111.5926]
[1752991553969,3.13,177.45,177.42,102.9]
[1752991554175,3.13,177.43,177.42,102.9]
[1752991554877,3.13,177.43,177.42,105.96]
[1752991555568,3.13,177.46,177.43,3.06]
[1752991556474,3.13,177.46,177.45,5.6323]
[1752991556670,3.13,177.46,177.45,111.5923]
[1752991557873,5.01622716,177.46,177.43,5.6328]
[1752991558076,3.09,177.45,177.44,102.9]
[1752991560473,3.09,177.45,177.44,108.5327]
[1752991560676,3.09,177.45,177.44,102.9]
[1752991563475,3.09,177.45,177.44,106.01]
[1752991564779,3.09,177.45,177.44,111.6427]
[1752991568284,3.09,177.45,177.43,102.9]
[1752991568472,4.97622716,177.44,177.43,102.9]
[1752991569381,3.09,177.48,177.43,106.01]
[1752991569583,3.09,177.46,177.44,3.11]
[1752991569779,3.09,177.46,177.45,106.01]
[1752991570081,3.09,177.46,177.45,106.09]
[1752991570782,3.09,177.46,177.45,111.7223]
[1752991573090,3.09,177.46,177.45,108.6123]
[1752991573282,3.09,177.46,177.45,102.98]
[1752991574487,3.09,177.46,177.44,3.11]
[1752991574785,3.09,177.46,177.44,8.7425]
[1752991576084,5.6316,177.48,177.47,3.11]
[1752991576085,3.09,177.48,177.47,3.11]
[1752991576883,1.88622716,177.49,177.48,5.6314]
[1752991577185,4.97622716,177.49,177.48,8.7414]
[1752991580090,3.09,177.49,177.48,8.7414]
[1752991582382,3.09,177.5,177.49,8.7411]
[1752991582893,4.97622716,177.51,177.49,3.11]
[1752991583080,4.97622716,177.51,177.5,8.7408]
[1752991583481,3.09,177.51,177.5,8.7408]
[1752991583688,4.97622716,177.53,177.51,5.6303]
[1752991583980,3.09,177.52,177.51,5.6303]
[1752991584487,3.09,177.52,177.51,8.7403]
[1752991584691,3.09,177.52,177.49,102.9]
[1752991584692,3.09,177.54,177.52,5.6301]
[1752991584888,3.09,177.54,177.53,3.11]
[1752991585490,3.09,177.54,177.53,8.7398]
[1752991587890,3.09,177.56,177.53,3.11]
[1752991588095,3.17,177.55,177.53,3.11]
[1752991588288,3.17,177.55,177.53,105.99]
[1752991588484,3.17,177.55,177.54,3.24]
[1752991589999,3.17,177.55,177.54,8.8695]
[1752991598702,3.17,177.54,177.51,102.86]
[1752991598903,3.17,177.54,177.51,106.1]
[1752991600306,3.17,177.54,177.51,102.86]
[1752991600499,3.17,177.54,177.51,108.4904]
[1752991601405,3.17,177.54,177.51,102.86]
[1752991601604,3.17,177.52,177.51,102.86]
[1752991601800,3.17,177.52,177.5,8.8706]
[1752991603002,3.17,177.52,177.51,5.6304]
[1752991605106,3.17,177.52,177.5,5.6307]
[1752991605404,3.17,177.52,177.5,8.8707]
[1752991606403,1.88622716,177.51,177.49,108.491]
[1752991606605,3.17,177.5,177.49,111.731]
[1752991612010,5.05622716,177.5,177.47,3.24]
[1752991612411,3.17,177.49,177.47,106.1]
[1752991613613,3.17,177.49,177.48,5.6312]
[1752991615114,3.17,177.49,177.47,108.4916]
[1752991615309,5.05622716,177.48,177.45,3.24]
[1752991615510,5.05622716,177.46,177.45,106.1]
[1752991616415,5.05622716,177.46,177.45,111.7323]
[1752991617216,3.17,177.46,177.45,111.7323]
[1752991620223,1.88622716,177.5,177.46,3.28]
[1752991620526,1.88622716,177.5,177.48,3.28]
[1752991620724,3.19,177.49,177.48,106.14]
[1752991621129,5.07622716,177.5,177.49,5.6311]
[1752991621425,5.07622716,177.5,177.49,8.9111]
[1752991624932,1.88622716,177.53,177.49,3.28]
[1752991625130,3.19,177.52,177.51,3.28]
[1752991625330,3.19,177.52,177.51,106.14]
[1752991625832,3.19,177.52,177.51,111.7704]
[1752991631935,5.07622716,177.53,177.52,8.9101]
[1752991632235,1.88622716,177.53,177.52,8.9101]
[1752991632640,5.07622716,177.53,177.52,8.9101]
[1752991635030,4.39626301,177.53,177.52,8.9101]
[1752991639044,4.39626301,177.53,177.52,3.28]
[1752991639241,4.39626301,177.53,177.51,102.86]
[1752991639637,3.19,177.52,177.51,102.86]
[1752991639839,3.19,177.52,177.51,108.4904]
[1752991640537,3.19,177.52,177.51,102.86]
[1752991640741,3.19,177.52,177.45,4.73218244]
[1752991640943,1.20626301,177.49,177.46,102.84]
[1752991641144,1.20626301,177.49,177.44,1.20626301]
[1752991641145,1.20626301,177.49,177.48,8.9114]
[1752991641443,1.20626301,177.49,177.48,111.7514]
[1752991641643,4.39626301,177.49,177.48,111.7514]
[1752991646838,3.19,177.51,177.5,5.6308]
[1752991647039,4.39626301,177.51,177.5,111.7508]
[1752991649243,4.39626301,177.51,177.5,108.4708]
[1752991652539,3.19,177.51,177.5,108.4708]
[1752991652737,4.39626301,177.51,177.5,108.4708]
[1752991653446,4.39626301,177.51,177.5,111.6308]
[1752991655347,3.19,177.51,177.5,111.6308]
[1752991655646,4.39626301,177.51,177.5,111.6308]
[1752991671455,3.19,177.51,177.5,111.6308]
[1752991671660,4.39626301,177.51,177.5,111.6308]
[1752991672966,1.20626301,177.51,177.5,111.6308]
[1752991674862,4.50626301,177.51,177.5,111.6308]
[1752991677965,1.20626301,177.51,177.5,111.6308]
[1752991678264,4.43626301,177.52,177.51,8.9404]
[1752991678667,1.20626301,177.52,177.51,8.9404]
[1752991679466,1.20626301,177.54,177.51,3.31]
[1752991679667,1.20626301,177.54,177.53,3.31]
[1752991679968,1.20626301,177.54,177.53,111.7198]
[1752991681063,3.23,177.53,177.52,8.94]
[1752991681263,3.23,177.53,177.52,111.72]
[1752991681667,1.20626301,177.54,177.53,5.6298]
[1752991681872,4.43626301,177.55,177.53,3.31]
[1752991682072,4.43626301,177.55,177.54,106.09]
[1752991682771,1.20626301,177.55,177.54,106.09]
[1752991682973,1.20626301,177.55,177.54,111.7195]
[1752991683274,4.43626301,177.55,177.54,111.7195]
[1752991684077,4.43626301,177.55,177.54,108.4095]
[1752991684269,4.43626301,177.55,177.54,111.7195]
[1752991685165,4.43626301,177.55,177.54,108.4095]
[1752991686980,4.43626301,177.55,177.54,111.7195]
[1752991688875,4.43626301,177.55,177.54,108.4095]
[1752991689676,4.43626301,177.55,177.54,111.7195]
[1752991690279,1.20626301,177.55,177.54,111.7195]
[1752991690578,4.43626301,177.55,177.54,111.7195]
[1752991697085,3.23,177.55,177.54,111.7195]
[1752991697285,4.43626301,177.55,177.54,111.7195]
[1752991698685,1.20626301,177.55,177.54,111.7195]
[1752991699186,4.43626301,177.55,177.54,111.7195]
[1752991699387,4.43626301,177.55,177.54,111.6795]
[1752991705892,1.20626301,177.55,177.54,111.6795]
[1752991706091,1.20626301,177.56,177.55,3.31]
[1752991706591,3.23,177.57,177.55,3.31]
[1752991706788,4.43626301,177.58,177.57,8.9385]
[1752991706992,4.43626301,177.58,177.57,111.6585]
[1752991710300,4.43626301,177.58,177.57,108.3485]
[1752991713302,4.43626301,177.58,177.57,102.72]
[1752991714905,4.43626301,177.58,177.57,108.3485]
[1752991718108,4.43626301,177.58,177.57,111.4585]
[1752991723415,4.43626301,177.58,177.57,105.83]
[1752991728312,4.43626301,177.58,177.57,102.68]
[1752991730116,4.43626301,177.58,177.57,105.79]
[1752991731815,4.43626301,177.58,177.57,111.4185]
[1752991732118,4.43626301,177.58,177.57,105.79]
[1752991734421,3.23,177.58,177.57,105.79]
[1752991734719,4.43626301,177.58,177.57,111.4185]
[1752991736013,3.19,177.6,177.58,5.6281]
[1752991736216,1.20626301,177.59,177.58,8.7381]
[1752991737315,4.39626301,177.59,177.58,8.7381]
[1752991737520,4.39626301,177.6,177.58,8.7381]
[1752991737720,4.39626301,177.6,177.59,111.3979]
[1752991739218,1.20626301,177.6,177.59,111.3979]
[1752991739417,2.99,177.63,177.61,2.99]
[1752991739627,4.19626301,177.63,177.62,105.65]